[Event "Weekend Groninger Combinatie 2019"]
[Site "Groningen"]
[Date "2019.06.01"]
[Round "5.3"]
[White "Hoeksema, Hendrik Pieter"]
[Black "Wichtrup, Jan-Louis"]
[Result "1/2-1/2"]
[ECO "D37"]
[WhiteElo "2349"]
[BlackElo "2110"]
[Annotator "ChessBase"]
[PlyCount "94"]
[EventDate "2019.05.30"]
[EventType "swiss"]
[EventCountry "NED"]
[SourceTitle "playchess.com"]
[Source "ChessBase"]
[SourceQuality "1"]
[TimeControl "5400+30"]

1. Nf3 {[%emt 0:00:00]} Nf6 {[%emt 0:00:00]} 2. c4 {[%emt 0:00:00]} e6 {[%emt 0:00:00]} 3. Nc3 {[%emt 0:00:15]} d5 {[%emt 0:00:01]} 4. d4 {[%emt 0:00:10]} Be7 {[%emt 0:00:07]} 5. Bf4 {[%emt 0:00:39]} O-O {[%emt 0:00:13]} 6. e3 {[%emt 0:00:04]} Nbd7 {[%emt 0:00:49]} 7. a3 {[%emt 0:03:43]} c5 {[%emt 0:01:04]} 8. cxd5 {[%emt 0:08:00]} Nxd5 {[%emt 0:00:12]} 9. Nxd5 {[%emt 0:00:08]} exd5 {[%emt 0:00:11]} 10. dxc5 {[%emt 0:05:01]} Nxc5 {[%emt 0:01:52]} 11. Be2 {[%emt 0:00:53]} Bg4 {[%emt 0:23:14]} 12. O-O {[%emt 0:12:31]} Bf6 {[%emt 0:02:34]} 13. Ne5 {[%emt 0:06:46]} Bxe2 {[%emt 0:01:17]} 14. Qxe2 {[%emt 0:00:07]} Qe7 {[%emt 0:09:26]} 15. Ng4 {[%emt 0:04:24]} Ne6 {[%emt 0:00:45]} 16. Nxf6+ {[%emt 0:03:00]} Qxf6 {[%emt 0:00:11]} 17. Bg3 {[%emt 0:00:06]} a6 {[%emt 0:04:59]} 18. Rfd1 {[%emt 0:06:18]} Rfd8 {[%emt 0:01:23]} 19. Rac1 {[%emt 0:01:30]} Rac8 {[%emt 0:00:57]} 20. Rxc8 {[%emt 0:01:59]} Rxc8 {[%emt 0:00:07]} 21. h3 {[%emt 0:05:51]} Qf5 {[%emt 0:09:03]} 22. Qd3 {[%emt 0:02:58]} Qxd3 {[%emt 0:01:21]} 23. Rxd3 {[%emt 0:00:02]} Rd8 {[%emt 0:01:30]} 24. Be5 {[%emt 0:00:55]} f6 {[%emt 0:00:45]} 25. Bc3 {[%emt 0:00:16]} Kf7 {[%emt 0:02:08]} 26. f3 {[%emt 0:00:15]} Rd7 {[%emt 0:05:37]} 27. g4 {[%emt 0:00:52]} h6 {[%emt 0:05:50]} 28. Kg2 {[%emt 0:00:23]} Nd8 {[%emt 0:01:08]} 29. e4 {[%emt 0:11:41]} Ke6 {[%emt 0:00:29]} 30. f4 {[%emt 0:00:12]} dxe4 {[%emt 0:00:56]} 31. f5+ {[%emt 0:00:12]} Ke7 {[%emt 0:00:08]} 32. Bb4+ {[%emt 0:01:38]} Ke8 {[%emt 0:00:09]} 33. Rxd7 {[%emt 0:00:04]} Kxd7 {[%emt 0:00:08]} 34. Bf8 {[%emt 0:00:03]} Nf7 {[%emt 0:08:39]} 35. Bxg7 {[%emt 0:01:40]} Ke7 {[%emt 0:00:18]} 36. Kf2 {[%emt 0:02:57]} Ng5 {[%emt 0:05:27]} 37. Bxh6 {[%emt 0:04:10]} Nxh3+ {[%emt 0:00:48]} 38. Ke3 {[%emt 0:00:18]} Kd6 {[%emt 0:01:25]} 39. Kxe4 {[%emt 0:02:01]} Nf2+ {[%emt 0:00:19]} 40. Kf3 {[%emt 0:00:27]} Nd3 {[%emt 0:01:58]} 41. b3 {[%emt 0:00:15]} Ke5 {[%emt 0:05:08]} 42. Ke3 {[%emt 0:02:47]} Nc5 {[%emt 0:01:46]} 43. b4 {[%emt 0:02:37]} Ne4 {[%emt 0:00:07]} 44. Bg7 {[%emt 0:05:17]} Nd6 {[%emt 0:03:49]} 45. Kd3 {[%emt 0:01:27]} Ne4 {[%emt 0:01:52]} 46. Ke3 {[%emt 0:01:21]} Nd6 {[%emt 0:00:08]} 47. Kd3 {[%emt 0:01:43]} Ne4 {[%emt 0:03:12]} 1/2-1/2

[Event "Weekend Groninger Combinatie 2019"]
[Site "Groningen"]
[Date "2019.06.01"]
[Round "5.4"]
[White "De Boer, Eelke"]
[Black "Nicolai, Amir"]
[Result "1/2-1/2"]
[ECO "B33"]
[WhiteElo "2333"]
[BlackElo "2095"]
[Annotator "ChessBase"]
[PlyCount "111"]
[EventDate "2019.05.30"]
[EventType "swiss"]
[EventCountry "NED"]
[SourceTitle "playchess.com"]
[Source "ChessBase"]
[SourceQuality "1"]
[TimeControl "5400+30"]

1. e4 {[%emt 0:00:00]} c5 {[%emt 0:00:00]} 2. Nf3 {[%emt 0:00:00]} Nc6 {[%emt 0:00:00]} 3. d4 {[%emt 0:00:00]} cxd4 {[%emt 0:00:00]} 4. Nxd4 {[%emt 0:00:00]} Nf6 {[%emt 0:00:00]} 5. Nc3 {[%emt 0:00:00]} e5 {[%emt 0:00:00]} 6. Ndb5 {[%emt 0:00:05]} d6 {[%emt 0:00:00]} 7. Bg5 {[%emt 0:00:06]} a6 {[%emt 0:00:02]} 8. Na3 {[%emt 0:00:10]} b5 {[%emt 0:00:14]} 9. Nd5 {[%emt 0:00:06]} Be7 {[%emt 0:00:04]} 10. Bxf6 {[%emt 0:00:05]} Bxf6 {[%emt 0:00:07]} 11. c3 {[%emt 0:00:15]} Ne7 {[%emt 0:00:21]} 12. Nxf6+ {[%emt 0:01:56]} gxf6 {[%emt 0:00:07]} 13. Bd3 {[%emt 0:03:59]} Bb7 {[%emt 0:06:19]} 14. Qe2 {[%emt 0:02:21]} Qb6 {[%emt 0:00:38]} 15. Nc2 {[%emt 0:01:15]} d5 {[%emt 0:06:41]} 16. O-O-O {[%emt 0:08:09]} O-O-O {[%emt 0:01:05]} 17. exd5 {[%emt 0:03:24]} Nxd5 {[%emt 0:01:57]} 18. Be4 {[%emt 0:00:46]} Nf4 {[%emt 0:14:01]} 19. Qf3 {[%emt 0:00:10]} Kb8 {[%emt 0:03:21]} 20. g3 {[%emt 0:00:37]} Bxe4 {[%emt 0:03:02]} 21. Qxe4 {[%emt 0:00:09]} Nh3 {[%emt 0:00:23]} 22. Qe3 {[%emt 0:10:40]} Qxe3+ {[%emt 0:06:09]} 23. fxe3 {[%emt 0:00:13]} Nf2 {[%emt 0:00:14]} 24. Rxd8+ {[%emt 0:00:08]} Rxd8 {[%emt 0:00:03]} 25. Rf1 {[%emt 0:00:14]} Ne4 {[%emt 0:57:42]} 26. Nb4 {[%emt 0:04:20]} Kb7 {[%emt 0:00:00]} 27. Rd1 {[%emt 0:00:30]} Rxd1+ {[%emt 0:00:00]} 28. Kxd1 {[%emt 0:00:46]} a5 {[%emt 0:01:30]} 29. Nd5 Kc6 {[%emt 0:00:00]} 30. Ne7+ {[%emt 0:02:05]} Kc5 {[%emt 0:00:00]} 31. Ke2 {[%emt 0:00:27]} a4 {[%emt 0:00:00]} 32. Kd3 {[%emt 0:04:39]} Nf2+ {[%emt 0:00:00]} 33. Kd2 {[%emt 0:00:30]} Ng4 {[%emt 0:00:00]} 34. Ng8 {[%emt 0:00:30]} Nxh2 35. Nxf6 {[%emt 0:08:15]} Nf1+ {[%emt 0:03:30]} 36. Ke2 {[%emt 0:04:08]} Nxg3+ {[%emt 0:00:00]} 37. Kf3 {[%emt 0:00:22]} Nf5 {[%emt 0:00:00]} 38. Nxh7 {[%emt 0:00:19]} Nd6 {[%emt 0:00:00]} 39. Nf6 {[%emt 0:03:41]} Kc4 {[%emt 0:02:00]} 40. Ke2 {[%emt 0:06:36]} a3 {[%emt 0:00:30]} 41. bxa3 {[%emt 0:07:12]} Kxc3 {[%emt 0:00:00]} 42. Nd7 {[%emt 0:02:08]} Nc4 {[%emt 0:00:00]} 43. Nc5 {[%emt 0:30:14]} f5 {[%emt 0:01:30]} 44. a4 {[%emt 0:00:30]} Kb4 {[%emt 0:00:00]} 45. Nd7 {[%emt 0:00:30]} Kxa4 {[%emt 0:00:00]} 46. Kd3 {[%emt 0:00:00]} Ka3 {[%emt 0:00:00]} 47. Kc3 e4 {[%emt 0:00:00]} 48. Kd4 {[%emt 0:00:08]} Kxa2 {[%emt 0:00:00]} 49. Nf6 {[%emt 0:01:52]} Ka3 {[%emt 0:01:28]} 50. Nd5 {[%emt 0:00:00]} Nd2 {[%emt 0:00:46]} 51. Kc5 {[%emt 0:00:05]} Nf1 {[%emt 0:00:30]} 52. Kxb5 {[%emt 0:00:49]} Nxe3 {[%emt 0:00:30]} 53. Nxe3 {[%emt 0:00:30]} f4 {[%emt 0:00:30]} 54. Nc4+ {[%emt 0:00:30]} Ka2 {[%emt 0:00:30]} 55. Kb4 {[%emt 0:00:30]} e3 {[%emt 0:00:30]} 56. Kc3 {[%emt 0:00:30]} 1/2-1/2

[Event "Weekend Groninger Combinatie 2019"]
[Site "Groningen"]
[Date "2019.06.01"]
[Round "5.5"]
[White "Elgersma, Simon"]
[Black "Hilwerda, Jonas"]
[Result "1-0"]
[ECO "C55"]
[WhiteElo "2088"]
[BlackElo "2317"]
[Annotator "ChessBase"]
[PlyCount "89"]
[EventDate "2019.05.30"]
[EventType "swiss"]
[EventCountry "NED"]
[SourceTitle "playchess.com"]
[Source "ChessBase"]
[SourceQuality "1"]
[TimeControl "5400+30"]

1. e4 {[%emt 0:01:56]} e5 {[%emt 0:00:00]} 2. Nf3 {[%emt 0:00:20]} Nc6 {[%emt 0:00:00]} 3. Bb5 {[%emt 0:00:30]} a6 {[%emt 0:00:00]} 4. Ba4 {[%emt 0:00:04]} Nf6 {[%emt 0:00:00]} 5. O-O {[%emt 0:00:04]} Be7 {[%emt 0:00:02]} 6. d3 {[%emt 0:00:17]} b5 {[%emt 0:00:24]} 7. Bb3 {[%emt 0:00:04]} d6 {[%emt 0:00:09]} 8. a4 {[%emt 0:00:20]} Bd7 {[%emt 0:00:16]} 9. c3 {[%emt 0:07:38]} O-O {[%emt 0:02:37]} 10. Nbd2 {[%emt 0:02:09]} Na5 {[%emt 0:00:32]} 11. Bc2 {[%emt 0:01:16]} c5 {[%emt 0:00:15]} 12. Re1 {[%emt 0:01:40]} Nc6 {[%emt 0:00:47]} 13. Nf1 {[%emt 0:02:36]} h6 {[%emt 0:03:14]} 14. Ne3 {[%emt 0:04:50]} Re8 {[%emt 0:01:00]} 15. Nd5 {[%emt 0:02:16]} Nxd5 {[%emt 0:12:54]} 16. exd5 {[%emt 0:00:20]} Na5 {[%emt 0:00:09]} 17. b4 {[%emt 0:12:53]} Nb7 {[%emt 0:03:34]} 18. a5 {[%emt 0:03:32]} cxb4 {[%emt 0:05:08]} 19. cxb4 {[%emt 0:00:31]} f5 {[%emt 0:00:12]} 20. Bb2 {[%emt 0:06:16]} Bf6 {[%emt 0:02:08]} 21. Bb3 {[%emt 0:01:03]} g5 {[%emt 0:12:19]} 22. Rc1 {[%emt 0:05:00]} g4 {[%emt 0:04:02]} 23. Nd2 {[%emt 0:01:20]} Qe7 {[%emt 0:03:16]} 24. f4 {[%emt 0:04:45]} Kg7 {[%emt 0:05:44]} 25. d4 {[%emt 0:04:07]} e4 {[%emt 0:04:08]} 26. Rc7 {[%emt 0:02:40]} Rab8 {[%emt 0:04:22]} 27. Nf1 {[%emt 0:00:27]} Rec8 {[%emt 0:11:43]} 28. Qc2 {[%emt 0:02:48]} Qf7 {[%emt 0:03:21]} 29. Ne3 {[%emt 0:01:49]} Bd8 {[%emt 0:09:59]} 30. Rc6 {[%emt 0:02:28]} Bxc6 {[%emt 0:06:32]} 31. dxc6 {[%emt 0:00:20]} Qg6 {[%emt 0:00:05]} 32. Be6 {[%emt 0:02:05]} Rc7 {[%emt 0:03:24]} 33. Nxf5+ {[%emt 0:02:49]} Kf8 {[%emt 0:00:54]} 34. Qxe4 {[%emt 0:01:26]} Bf6 {[%emt 0:00:17]} 35. cxb7 {[%emt 0:05:10]} Rbxb7 {[%emt 0:00:16]} 36. Bd5 {[%emt 0:00:36]} Rb8 {[%emt 0:01:02]} 37. Qe6 {[%emt 0:03:02]} Re8 {[%emt 0:01:01]} 38. Qxd6+ {[%emt 0:00:49]} Ree7 {[%emt 0:01:23]} 39. Qd8+ {[%emt 0:08:16]} Qe8 {[%emt 0:00:04]} 40. Qd6 {[%emt 0:01:11]} Qg6 {[%emt 0:00:25]} 41. Kh1 {[%emt 0:02:49]} h5 {[%emt 0:02:19]} 42. Nxe7 {[%emt 0:00:39]} Rxe7 {[%emt 0:00:11]} 43. Qd8+ {[%emt 0:00:07]} Re8 {[%emt 0:00:44]} 44. Rxe8+ {[%emt 0:00:07]} Kg7 {[%emt 0:00:07]} 45. Rg8+ {[%emt 0:00:14]} 1-0

[Event "Weekend Groninger Combinatie 2019"]
[Site "Groningen"]
[Date "2019.06.01"]
[Round "5.6"]
[White "Taal, Rieks"]
[Black "Wempe, Joost"]
[Result "1/2-1/2"]
[ECO "E33"]
[WhiteElo "2078"]
[BlackElo "2261"]
[Annotator "ChessBase"]
[PlyCount "164"]
[EventDate "2019.05.30"]
[EventType "swiss"]
[EventCountry "NED"]
[SourceTitle "playchess.com"]
[Source "ChessBase"]
[SourceQuality "1"]
[TimeControl "5400+30"]

1. c4 {[%emt 0:02:32]} Nf6 {[%emt 0:00:00]} 2. d4 {[%emt 0:00:11]} e6 {[%emt 0:00:00]} 3. Nc3 {[%emt 0:00:04]} Bb4 {[%emt 0:02:21]} 4. Qc2 {[%emt 0:00:41]} Nc6 {[%emt 0:00:28]} 5. Nf3 {[%emt 0:00:06]} d6 {[%emt 0:01:19]} 6. Bd2 {[%emt 0:00:44]} O-O {[%emt 0:00:21]} 7. a3 {[%emt 0:00:10]} Bxc3 {[%emt 0:00:06]} 8. Bxc3 {[%emt 0:00:03]} Qe7 {[%emt 0:00:15]} 9. e3 {[%emt 0:00:43]} e5 {[%emt 0:01:24]} 10. d5 {[%emt 0:01:52]} Nb8 {[%emt 0:00:15]} 11. Bd3 {[%emt 0:04:18]} a5 {[%emt 0:03:26]} 12. O-O {[%emt 0:04:03]} a4 {[%emt 0:00:58]} 13. c5 {[%emt 0:01:53]} Nxd5 {[%emt 0:14:47]} 14. cxd6 {[%emt 0:01:31]} cxd6 {[%emt 0:00:12]} 15. Bxh7+ {[%emt 0:00:13]} Kh8 {[%emt 0:00:07]} 16. Be4 {[%emt 0:03:08]} Nxc3 {[%emt 0:01:47]} 17. Qxc3 {[%emt 0:00:15]} Na6 {[%emt 0:09:58]} 18. Rfd1 {[%emt 0:02:37]} Nc5 {[%emt 0:01:03]} 19. Bd5 {[%emt 0:03:00]} Bg4 {[%emt 0:05:44]} 20. h3 {[%emt 0:07:03]} Bh5 {[%emt 0:01:47]} 21. e4 {[%emt 0:03:13]} Bxf3 {[%emt 0:00:10]} 22. Qxf3 {[%emt 0:00:43]} g6 {[%emt 0:00:37]} 23. Rd2 {[%emt 0:00:35]} Kg7 {[%emt 0:00:46]} 24. Rad1 {[%emt 0:00:22]} Rab8 {[%emt 0:03:54]} 25. b4 {[%emt 0:04:38]} axb3 {[%emt 0:00:07]} 26. Bxb3 {[%emt 0:00:04]} Rfd8 {[%emt 0:00:30]} 27. Bd5 {[%emt 0:03:51]} Ra8 {[%emt 0:00:50]} 28. Rc2 {[%emt 0:01:03]} Ra5 {[%emt 0:01:28]} 29. Rc3 {[%emt 0:01:21]} Rda8 {[%emt 0:00:22]} 30. h4 {[%emt 0:01:36]} Rh8 {[%emt 0:04:47]} 31. g3 {[%emt 0:01:06]} Rb5 {[%emt 0:06:18]} 32. Rc2 {[%emt 0:03:17]} Qf6 {[%emt 0:07:01]} 33. Qe3 {[%emt 0:01:23]} Ra5 {[%emt 0:01:19]} 34. Kg2 {[%emt 0:00:48]} Ra4 {[%emt 0:01:16]} 35. Rb1 {[%emt 0:02:20]} Rb8 {[%emt 0:06:29]} 36. Rh1 {[%emt 0:02:03]} Rd4 {[%emt 0:01:14]} 37. Rc3 {[%emt 0:00:54]} Rh8 {[%emt 0:01:41]} 38. Qe2 {[%emt 0:01:35]} Qd8 {[%emt 0:00:51]} 39. h5 {[%emt 0:04:44]} Qg5 {[%emt 0:06:27]} 40. Rf3 {[%emt 0:05:19]} f5 {[%emt 0:03:44]} 41. Qb5 {[%emt 0:03:48]} Qe7 {[%emt 0:05:39]} 42. hxg6 {[%emt 0:02:53]} Rxh1 {[%emt 0:00:46]} 43. Rxf5 {[%emt 0:00:52]} Kxg6 {[%emt 0:06:01]} 44. Qe2 {[%emt 0:04:58]} Rh4 {[%emt 0:01:57]} 45. gxh4 {[%emt 0:01:26]} Qxh4 {[%emt 0:00:28]} 46. Rf3 {[%emt 0:04:51]} Nxe4 {[%emt 0:00:21]} 47. Bxe4+ {[%emt 0:00:18]} Qxe4 {[%emt 0:00:16]} 48. Qb5 {[%emt 0:01:36]} Qc6 {[%emt 0:00:48]} 49. Qb1+ {[%emt 0:00:17]} Kg7 {[%emt 0:00:51]} 50. Kg3 {[%emt 0:01:34]} d5 {[%emt 0:00:30]} 51. Qf5 {[%emt 0:01:40]} Qg6+ {[%emt 0:00:06]} 52. Qxg6+ {[%emt 0:00:04]} Kxg6 {[%emt 0:00:05]} 53. Rb3 {[%emt 0:00:03]} Ra4 {[%emt 0:01:11]} 54. f3 {[%emt 0:00:25]} Kf5 {[%emt 0:00:21]} 55. Kf2 {[%emt 0:00:14]} d4 {[%emt 0:00:45]} 56. Ke2 {[%emt 0:00:24]} b5 {[%emt 0:00:54]} 57. Rxb5 {[%emt 0:03:48]} Rxa3 {[%emt 0:00:05]} 58. Rb8 {[%emt 0:00:15]} Ra2+ {[%emt 0:00:06]} 59. Kd3 {[%emt 0:00:13]} Rf2 {[%emt 0:01:16]} 60. Rf8+ {[%emt 0:00:06]} Ke6 {[%emt 0:00:02]} 61. Re8+ {[%emt 0:00:32]} Kf5 {[%emt 0:00:50]} 62. Rf8+ {[%emt 0:00:08]} Kg5 {[%emt 0:00:04]} 63. Rf7 {[%emt 0:02:40]} Rf1 {[%emt 0:00:57]} 64. Rf8 {[%emt 0:02:12]} Re1 {[%emt 0:00:13]} 65. Kd2 {[%emt 0:02:06]} Re3 {[%emt 0:00:25]} 66. Rf7 {[%emt 0:00:09]} Kh4 {[%emt 0:00:46]} 67. f4 {[%emt 0:00:12]} e4 {[%emt 0:00:12]} 68. Rf8 {[%emt 0:01:16]} Kg4 {[%emt 0:00:36]} 69. f5 {[%emt 0:00:06]} Ra3 {[%emt 0:00:16]} 70. f6 {[%emt 0:00:27]} Ra2+ {[%emt 0:01:05]} 71. Kc1 {[%emt 0:00:22]} Kf3 {[%emt 0:00:24]} 72. f7 {[%emt 0:00:10]} Ra7 {[%emt 0:00:26]} 73. Rd8 {[%emt 0:00:38]} Rxf7 {[%emt 0:00:16]} 74. Rxd4 {[%emt 0:00:04]} Ke3 {[%emt 0:00:20]} 75. Rd8 {[%emt 0:01:16]} Ke2 {[%emt 0:00:10]} 76. Rd2+ {[%emt 0:00:13]} Ke3 {[%emt 0:01:31]} 77. Rd8 {[%emt 0:00:34]} Rc7+ {[%emt 0:00:46]} 78. Kd1 {[%emt 0:00:15]} Ra7 {[%emt 0:00:03]} 79. Re8 {[%emt 0:01:22]} Ra1+ {[%emt 0:00:25]} 80. Kc2 {[%emt 0:00:06]} Kf3 {[%emt 0:00:39]} 81. Kd2 {[%emt 0:00:13]} e3+ {[%emt 0:00:15]} 82. Rxe3+ {[%emt 0:00:06]} Kf2 {[%emt 0:01:44]} 1/2-1/2

[Event "Weekend Groninger Combinatie 2019"]
[Site "Groningen"]
[Date "2019.06.01"]
[Round "5.7"]
[White "Wuijts, Johan"]
[Black "Pel, Bonno"]
[Result "0-1"]
[ECO "A42"]
[WhiteElo "1969"]
[BlackElo "2260"]
[Annotator "ChessBase"]
[PlyCount "32"]
[EventDate "2019.05.30"]
[EventType "swiss"]
[EventCountry "NED"]
[SourceTitle "playchess.com"]
[Source "ChessBase"]
[SourceQuality "1"]
[TimeControl "5400+30"]

1. c4 {[%emt 0:05:13]} g6 {[%emt 0:00:01]} 2. d4 {[%emt 0:00:07]} d6 {[%emt 0:00:16]} 3. Nc3 {[%emt 0:00:08]} Bg7 {[%emt 0:00:15]} 4. e4 {[%emt 0:00:15]} e5 {[%emt 0:00:56]} 5. d5 {[%emt 0:02:06]} a5 {[%emt 0:03:50]} 6. Be3 {[%emt 0:02:14]} f5 {[%emt 0:04:46]} 7. f3 {[%emt 0:06:51]} Nf6 {[%emt 0:05:00]} 8. Bd3 {[%emt 0:03:37]} O-O {[%emt 0:01:37]} 9. Qc2 {[%emt 0:03:03]} Na6 {[%emt 0:03:04]} 10. O-O-O {[%emt 0:01:04]} Nb4 {[%emt 0:06:14]} 11. Qb1 {[%emt 0:02:04]} c6 {[%emt 0:15:19]} 12. a3 {[%emt 0:04:11]} cxd5 {[%emt 0:06:10]} 13. cxd5 {[%emt 0:06:29]} Nxd3+ {[%emt 0:05:06]} 14. Qxd3 {[%emt 0:03:03]} Bd7 {[%emt 0:00:13]} 15. Kb1 {[%emt 0:00:13]} b5 {[%emt 0:01:21]} 16. Ka2 {[%emt 0:08:02]} b4 {[%emt 0:01:33]} 0-1

[Event "Weekend Groninger Combinatie 2019"]
[Site "Groningen"]
[Date "2019.06.01"]
[Round "5.8"]
[White "Duijker, Rick"]
[Black "Pellikaan, Govert"]
[Result "1-0"]
[ECO "A45"]
[WhiteElo "2164"]
[BlackElo "1980"]
[Annotator "ChessBase"]
[PlyCount "113"]
[EventDate "2019.05.30"]
[EventType "swiss"]
[EventCountry "NED"]
[SourceTitle "playchess.com"]
[Source "ChessBase"]
[SourceQuality "1"]
[TimeControl "5400+30"]

1. d4 {[%emt 0:03:00]} Nf6 {[%emt 0:00:00]} 2. Bg5 {[%emt 0:00:08]} Ne4 {[%emt 0:01:00]} 3. Bf4 {[%emt 0:00:09]} d5 {[%emt 0:00:53]} 4. e3 {[%emt 0:00:08]} c5 {[%emt 0:03:07]} 5. Bd3 {[%emt 0:00:10]} cxd4 {[%emt 0:10:36]} 6. exd4 {[%emt 0:00:24]} Qb6 {[%emt 0:01:30]} 7. Nc3 {[%emt 0:02:15]} Bf5 {[%emt 0:11:04]} 8. Nb5 {[%emt 0:10:44]} Na6 {[%emt 0:05:46]} 9. f3 {[%emt 0:03:01]} Rc8 {[%emt 0:06:31]} 10. c3 {[%emt 0:12:53]} g5 {[%emt 0:17:19]} 11. Be3 {[%emt 0:12:59]} Nb8 {[%emt 0:21:21]} 12. fxe4 {[%emt 0:31:38]} dxe4 {[%emt 0:00:23]} 13. Be2 {[%emt 0:01:16]} a6 {[%emt 0:00:03]} 14. Qb3 {[%emt 0:12:19]} axb5 {[%emt 0:00:56]} 15. Qxb5+ {[%emt 0:00:29]} Qxb5 {[%emt 0:00:32]} 16. Bxb5+ {[%emt 0:00:02]} Nd7 {[%emt 0:01:07]} 17. Ne2 {[%emt 0:00:27]} h6 {[%emt 0:00:46]} 18. Ng3 {[%emt 0:00:41]} Bg6 {[%emt 0:00:11]} 19. h4 {[%emt 0:00:26]} g4 {[%emt 0:01:59]} 20. h5 {[%emt 0:00:05]} Bh7 {[%emt 0:00:09]} 21. Rf1 {[%emt 0:00:17]} e6 {[%emt 0:00:23]} 22. Bxd7+ {[%emt 0:00:15]} Kxd7 {[%emt 0:00:22]} 23. Rxf7+ {[%emt 0:00:02]} Kc6 {[%emt 0:00:56]} 24. Rf6 {[%emt 0:02:41]} Kd5 {[%emt 0:02:46]} 25. Ne2 {[%emt 0:00:30]} Bf5 {[%emt 0:01:52]} 26. Ng3 {[%emt 0:00:56]} Be7 {[%emt 0:00:29]} 27. Rxh6 {[%emt 0:00:34]} Bh4 {[%emt 0:01:48]} 28. Kf2 {[%emt 0:00:02]} Rxh6 {[%emt 0:01:19]} 29. Bxh6 {[%emt 0:00:05]} e3+ {[%emt 0:01:14]} 30. Bxe3 {[%emt 0:00:10]} Rf8 {[%emt 0:00:04]} 31. Bf4 {[%emt 0:01:07]} Be4 {[%emt 0:04:03]} 32. Ke3 {[%emt 0:00:59]} Bxg2 {[%emt 0:00:15]} 33. Rg1 {[%emt 0:01:57]} Bxg3 {[%emt 0:00:28]} 34. Bxg3 {[%emt 0:00:04]} Rf3+ {[%emt 0:00:08]} 35. Ke2 {[%emt 0:00:16]} Rxg3 {[%emt 0:02:01]} 36. Kf2 {[%emt 0:00:03]} Rh3 {[%emt 0:01:35]} 37. Rxg2 {[%emt 0:00:10]} Rxh5 {[%emt 0:00:14]} 38. Rxg4 {[%emt 0:00:06]} Kc4 {[%emt 0:01:17]} 39. Rg2 {[%emt 0:02:12]} Kd3 {[%emt 0:00:28]} 40. Kf3 {[%emt 0:00:20]} Rf5+ {[%emt 0:00:35]} 41. Kg4 {[%emt 0:00:10]} Rf8 {[%emt 0:00:34]} 42. Rh2 {[%emt 0:00:22]} b5 {[%emt 0:01:11]} 43. a3 {[%emt 0:00:02]} Ke4 {[%emt 0:00:46]} 44. Re2+ {[%emt 0:00:21]} Kd3 {[%emt 0:00:44]} 45. Re5 {[%emt 0:02:02]} Rb8 {[%emt 0:00:34]} 46. Rxe6 {[%emt 0:00:45]} Kc2 {[%emt 0:00:07]} 47. Re2+ {[%emt 0:00:06]} Kd3 {[%emt 0:00:22]} 48. Rh2 {[%emt 0:00:15]} Ke4 {[%emt 0:00:42]} 49. Kg5 {[%emt 0:01:04]} Kd3 {[%emt 0:01:09]} 50. Kf6 {[%emt 0:00:10]} Ke4 {[%emt 0:00:45]} 51. Ke6 {[%emt 0:00:17]} Rb6+ {[%emt 0:00:16]} 52. Kd7 {[%emt 0:00:07]} Rg6 {[%emt 0:00:42]} 53. Rh5 {[%emt 0:00:20]} b4 {[%emt 0:00:26]} 54. axb4 {[%emt 0:00:11]} Rg2 {[%emt 0:00:03]} 55. b5 {[%emt 0:00:51]} Rxb2 {[%emt 0:00:03]} 56. Kc6 {[%emt 0:00:18]} Rc2 {[%emt 0:00:42]} 57. Rc5 {[%emt 0:05:09] Kd5+} 1-0

[Event "Weekend Groninger Combinatie 2019"]
[Site "Groningen"]
[Date "2019.06.01"]
[Round "5.9"]
[White "De Boer, Bas"]
[Black "Oord, Raymon"]
[Result "1-0"]
[ECO "A17"]
[WhiteElo "2095"]
[BlackElo "1948"]
[Annotator "NA"]
[PlyCount "93"]
[EventDate "2019.05.30"]
[EventType "swiss"]
[EventCountry "NED"]
[SourceTitle "playchess.com"]
[Source "ChessBase"]
[SourceQuality "1"]
[TimeControl "5400+30"]

1. Nf3 {[%emt 0:00:00]} Nf6 {[%emt 0:00:00]} 2. c4 {[%emt 0:00:00]} e6 {[%emt 0:03:30]} 3. Nc3 {[%emt 0:00:00]} d5 {[%emt 0:01:08]} 4. e3 {[%emt 0:00:44]} Be7 {[%emt 0:04:09]} 5. b3 {[%emt 0:00:06]} c5 {[%emt 0:02:31]} 6. Bb2 {[%emt 0:00:46]} Nc6 $11 {[%emt 0:01:59]} 7. cxd5 {[%emt 0:00:19]} exd5 {[%emt 0:01:25]} 8. d4 {[%emt 0:00:17]} O-O {[%emt 0:06:39]} 9. Be2 {[%emt 0:01:01]} cxd4 {[%emt 0:07:49]} 10. Nxd4 {[%emt 0:00:18]} Bc5 {[%emt 0:04:13]} 11. Ncb5 {[%emt 0:10:01]} a6 {[%emt 0:05:15]} 12. Nxc6 {[%emt 0:00:09]} bxc6 {[%emt 0:00:11]} 13. Nd4 {[%emt 0:00:05]} Bb4+ {[%emt 0:01:29]} 14. Kf1 {[%emt 0:00:08]} Qd6 {[%emt 0:19:25]} 15. Qc2 {[%emt 0:09:08]} Bd7 {[%emt 0:14:34]} 16. Rd1 {[%emt 0:06:06]} Ba3 {[%emt 0:04:27]} 17. Ba1 {[%emt 0:00:23]} Rfe8 {[%emt 0:03:03]} 18. Bd3 {[%emt 0:03:08]} Bg4 {[%emt 0:04:32]} 19. Re1 {[%emt 0:06:01]} c5 {[%emt 0:02:34]} 20. Nf5 {[%emt 0:01:00]} Bxf5 {[%emt 0:06:45]} 21. Bxf5 {[%emt 0:00:12]} h6 {[%emt 0:01:09]} 22. h4 {[%emt 0:04:35]} Rad8 {[%emt 0:00:26]} 23. g4 {[%emt 0:07:04]} d4 {[%emt 0:01:17]} 24. g5 {[%emt 0:02:47]} Qc6 {[%emt 0:01:01]} 25. Rg1 {[%emt 0:00:46]} Nd5 {[%emt 0:01:51]} 26. Bxd4 {[%emt 0:05:04]} Qb5+ {[%emt 0:00:49]} 27. Bd3 {[%emt 0:00:16]} Qd7 {[%emt 0:00:26]} 28. Bh7+ {[%emt 0:02:29]} Kf8 {[%emt 0:00:44]} 29. Bxc5+ {[%emt 0:01:17]} Bxc5 {[%emt 0:00:03]} 30. Qxc5+ {[%emt 0:00:09]} Re7 {[%emt 0:00:16]} 31. Rg3 {[%emt 0:01:02]} hxg5 {[%emt 0:00:27]} 32. hxg5 {[%emt 0:00:36]} f6 {[%emt 0:01:17]} 33. gxf6 {[%emt 0:01:00]} Nxf6 {[%emt 0:00:13]} 34. Bf5 {[%emt 0:00:40]} Qb5+ {[%emt 0:00:12]} 35. Qxb5 {[%emt 0:01:05]} axb5 {[%emt 0:00:02]} 36. Rc1 {[%emt 0:01:43]} Ra7 {[%emt 0:00:37]} 37. a4 {[%emt 0:04:05]} bxa4 {[%emt 0:00:37]} 38. bxa4 {[%emt 0:00:08]} Rxa4 {[%emt 0:01:09]} 39. Rc7 {[%emt 0:03:32]} Ra5 {[%emt 0:00:02]} 40. Be6 {[%emt 0:02:46]} Rd6 {[%emt 0:00:35]} 41. Bc4 {[%emt 0:00:45]} Rd7 {[%emt 0:00:49]} 42. Rc8+ {[%emt 0:00:39]} Ne8 {[%emt 0:00:23]} 43. Rf3+ {[%emt 0:00:19]} Ke7 {[%emt 0:00:26]} 44. Rf7+ {[%emt 0:00:21]} Kd6 {[%emt 0:00:26]} 45. Rxe8 {[%emt 0:00:08]} Rxf7 {[%emt 0:00:42]} 46. Bxf7 {[%emt 0:00:06]} Rf5 {[%emt 0:00:46]} 47. Bc4 {[%emt 0:01:31]} 1-0